Workbook

Sheet Min-Max Flow Rates (hidden)
A1: Size, ND | D1: Nominal Flow, m3/s | M1: m3/h | N1: =1/3600 -> 0.0002777777778 | O1: mm/s | P1: =10^(-3) -> 0.001
A2: =10^(-3) -> 0.001 | D2: min FS settable | G2: max FS settable | M2: m3/min | N2: =1/60 -> 0.01666666667 | O2: cm/s | P2: =10^(-2) -> 0.01
A3: mm | B3: m | C3: inches | D3: 0,4 m/s | E3: 1 m/s | G3: 10 m/s | I3: PF55S | J3: PF75S | K3: PF75H | M3: m3/s | N3: 1 | O3: m/s | P3: 1
A4: 0 | B4: 0 | C4: 0 | D4: 0 | E4: 0 | F4: 0 | G4: 0 | M4: l/h | N4: =10^(-3)/3600 -> 2.777777778e-07 | O4: in/s | P4: 0.0254
A5: 3 | B5: =A5*$A$2 -> 0.003 | C5: 1/8 | D5: =PI()*(($B5/2)^2)*0.4 -> 2.827433388e-06 | E5: =PI()*(($B5/2)^2)*1 -> 7.068583471e-06 | F5: =E5*Calculation!$D$2 -> 7.068583471e-05 | G5: =PI()*(($B5/2)^2)*10 -> 7.068583471e-05 | H5: ="DN"&A5 -> DN3 | I5: not available | J5: not available | K5: PF75H-5###########A########### | M5: l/min | N5: =10^(-3)/60 -> 1.666666667e-05 | O5: ft/s | P5: 0.3048
A6: 6 | B6: =A6*$A$2 -> 0.006 | C6: 1/4 | D6: =PI()*(($B6/2)^2)*0.4 -> 1.130973355e-05 | E6: =PI()*(($B6/2)^2)*1 -> 2.827433388e-05 | F6: =E6*Calculation!$D$2 -> 0.0002827433388 | G6: =PI()*(($B6/2)^2)*10 -> 0.0002827433388 | H6: ="DN"&A6 -> DN6 | I6: not available | J6: not available | K6: PF75H-5###########B########### | M6: l/s | N6: =10^(-3) -> 0.001 | O6: yd/s | P6: 0.9144
A7: 10 | B7: 0.01 | C7: 3/8 | D7: 3.141592654e-05 | E7: 7.853981634e-05 | F7: =E7*Calculation!$D$2 -> 0.0007853981634 | G7: 0.0007853981634 | H7: DN10 | I7: PF55S-##.######.1####### | J7: not available | K7: PF75H-5###########C########### | M7: Imp. gal/h | N7: =0.00454609/3600 -> 1.262802778e-06
A8: 15 | B8: 0.015 | C8: 1/2 | D8: 7.068583471e-05 | E8: 0.0001767145868 | F8: =E8*Calculation!$D$2 -> 0.001767145868 | G8: 0.001767145868 | H8: DN15 | I8: PF55S-##.######.2####### | J8: not available | K8: PF75H-5###########D########### | M8: Imp. gal/min | N8: =0.00454609/60 -> 7.576816667e-05
A9: 20 | B9: 0.02 | C9: 3/4 | D9: 0.0001256637061 | E9: 0.0003141592654 | F9: =E9*Calculation!$D$2 -> 0.003141592654 | G9: 0.003141592654 | H9: DN20 | I9: PF55S-##.######.3####### | J9: not available | K9: PF75H-5###########E########### | M9: Imp. gal/s | N9: =0.00454609 -> 0.00454609
A10: 25 | B10: 0.025 | C10: 1 | D10: 0.0001963495408 | E10: 0.0004908738521 | F10: =E10*Calculation!$D$2 -> 0.004908738521 | G10: 0.004908738521 | H10: DN25 | I10: PF55S-##.######.4####### | J10: PF75S-5###########F########### | K10: PF75H-5###########F########### | M10: US. liq. gal/h | N10: =0.003785411784/3600 -> 1.051503273e-06
A11: 32 | B11: 0.032 | C11: 1.25 | D11: 0.0003216990877 | E11: 0.0008042477193 | F11: =E11*Calculation!$D$2 -> 0.008042477193 | G11: 0.008042477193 | H11: DN32 | I11: PF55S-##.######.5####### | J11: PF75S-5###########G########### | K11: PF75H-5###########G########### | M11: US. liq. gal/min | N11: =0.003785411784/60 -> 6.30901964e-05
A12: 40 | B12: 0.04 | C12: 1.5 | D12: 0.0005026548246 | E12: 0.001256637061 | F12: =E12*Calculation!$D$2 -> 0.01256637061 | G12: 0.01256637061 | H12: DN40 | I12: PF55S-##.######.6####### | J12: PF75S-5###########H########### | K12: PF75H-5###########H########### | M12: US. liq. gal/s | N12: =0.003785411784 -> 0.003785411784
A13: 50 | B13: 0.05 | C13: 2 | D13: 0.0007853981634 | E13: 0.001963495408 | F13: =E13*Calculation!$D$2 -> 0.01963495408 | G13: 0.01963495408 | H13: DN50 | I13: PF55S-##.######.7####### | J13: PF75S-5###########I########### | K13: PF75H-5###########I###########
A14: 65 | B14: 0.065 | C14: 2.5 | D14: 0.001327322896 | E14: 0.00331830724 | F14: =E14*Calculation!$D$2 -> 0.0331830724 | G14: 0.0331830724 | H14: DN65 | I14: not available | J14: PF75S-5###########J########### | K14: PF75H-5###########J###########
A15: 80 | B15: 0.08 | C15: 3 | D15: 0.002010619298 | E15: 0.005026548246 | F15: =E15*Calculation!$D$2 -> 0.05026548246 | G15: 0.05026548246 | H15: DN80 | I15: not available | J15: PF75S-5###########K########### | K15: PF75H-5###########K###########
A16: 100 | B16: 0.1 | C16: 4 | D16: 0.003141592654 | E16: 0.007853981634 | F16: =E16*Calculation!$D$2 -> 0.07853981634 | G16: 0.07853981634 | H16: DN100 | I16: not available | J16: PF75S-5###########L########### | K16: PF75H-5###########L###########
A17: 125 | B17: 0.125 | C17: 5 | D17: 0.004908738521 | E17: 0.0122718463 | F17: =E17*Calculation!$D$2 -> 0.122718463 | G17: 0.122718463 | H17: DN125 | I17: not available | J17: PF75S-5###########M########### | K17: not available
A18: 150 | B18: 0.15 | C18: 6 | D18: 0.007068583471 | E18: 0.01767145868 | F18: =E18*Calculation!$D$2 -> 0.1767145868 | G18: 0.1767145868 | H18: DN150 | I18: not available | J18: PF75S-5###########N########### | K18: not available
A19: 200 | B19: 0.2 | C19: 8 | D19: 0.01256637061 | E19: 0.03141592654 | F19: =E19*Calculation!$D$2 -> 0.3141592654 | G19: 0.3141592654 | H19: DN200 | I19: not available | J19: PF75S-5###########O########### | K19: not available
A20: 250 | B20: =A20*$A$2 -> 0.25 | C20: 10 | D20: 0.01963495408 | E20: 0.04908738521 | F20: =E20*Calculation!$D$2 -> 0.4908738521 | G20: 0.4908738521 | H20: ="DN"&A20 -> DN250 | I20: not available | J20: PF75S-5###########P########### | K20: not available
H21: Flow rate too high
H22: Flow rate too low
D28: =D7*60*1000 -> 1.884955592

Sheet Calculation
A1: Max. flow rate | B1: 1 | C1: m3/h | D1: =VLOOKUP(C1,'Min-Max Flow Rates'!M1:N12,2,0)*Calculation!B1 -> 0.0002777777778 | E1: m3/s
A2: Max. allowed flow speed | B2: 10 | C2: m/s | D2: =VLOOKUP(C2,'Min-Max Flow Rates'!O1:P6,2,0)*Calculation!B2 -> 10 | E2: m/s
D3: =D1/(PI()*(10^(-3)*INDEX('Min-Max Flow Rates'!A4:H20,IF(MATCH(D1,'Min-Max Flow Rates'!G4:G20,1)>16,17,MATCH(D1,'Min-Max Flow Rates'!G4:G20,1)+1),1)/2)^2)/VLOOKUP(E3,'Min-Max Flow Rates'!O1:P6,2,0) -> 9.824379203 | E3: m/s
D4: =IF(E4>17,'Min-Max Flow Rates'!H21,INDEX('Min-Max Flow Rates'!F4:H20,Calculation!E4,3)) -> DN6 | E4: =MATCH(D1,'Min-Max Flow Rates'!G4:G20,1)+1+IF(D3>10,ROUNDDOWN(D2/10,0),0)+IF(D3>D2,ROUNDUP(D3/D2,0),0) -> 3
A5: You need a Magmeter with nomininal dimaeter | B5: =IF(B7>B1,'Min-Max Flow Rates'!H22,IF(E4>17,'Min-Max Flow Rates'!H21,INDEX('Min-Max Flow Rates'!F4:H20,Calculation!E4,3))) -> DN6
A6: Resulting max. flow speed | B6: =IF(B7>B1,'Min-Max Flow Rates'!H22,IF(E4>17,'Min-Max Flow Rates'!H21,D1/(PI()*(10^(-3)*INDEX('Min-Max Flow Rates'!A4:A20,Calculation!E4,1)/2)^2)/VLOOKUP(C6,'Min-Max Flow Rates'!O1:P6,2,0))) -> 9.824379203 | C6: =C2 -> m/s
A7: Min. measurable flow rate | B7: =INDEX('Min-Max Flow Rates'!A4:H20,IF(Calculation!E4>17,17,Calculation!E4),4)/VLOOKUP(C1,'Min-Max Flow Rates'!M1:N12,2,0) -> 0.04071504079 | C7: =C1 -> m3/h
A9: Recommended compact flow meter | B9: =_xlfn.IFNA(VLOOKUP(B5,'Min-Max Flow Rates'!H5:K20,2,0),B5) -> not available | C9: =IF(B9<>"not available",HYPERLINK("https://www.baumer.com/p/39513","Link to PF55S on baumer.com"),"") -> 
A10: Recommended industrial flow meter | B10: =_xlfn.IFNA(VLOOKUP(B5,'Min-Max Flow Rates'!H5:K20,3,0),B5) -> not available | C10: =IF(B10<>"not available",HYPERLINK("https://www.baumer.com/p/42442","Link to PF75S on baumer.com"),"") -> 
A11: Recommended hygienic flow meter | B11: =_xlfn.IFNA(VLOOKUP(B5,'Min-Max Flow Rates'!H5:K20,4,0),B5) -> PF75H-5###########B########### | C11: =IF(B11<>"not available",HYPERLINK("https://www.baumer.com/p/39514","Link to PF75H on baumer.com"),"") -> Link to PF75H on baumer.com
